fUSD/lending_fUSD_20240118
["ID","MTS","AMOUNT","RATE_DAILY","PERIOD"]
[312012252,1705546255295,-500.0,0.00022191,2]
[312012253,1705546255306,-500.0,0.00022191,2]
[312012254,1705546255316,-638.31,0.00022191,2]
[312012255,1705546255326,-841.39,0.00022191,2]
[312012256,1705546255336,-500.0,0.00022191,2]
[312012257,1705546255345,-2250.09,0.00022191,2]
[312012258,1705546255356,-512.82734413,0.00022191,2]
[312012259,1705546255365,-500.0,0.00022191,2]
[312012260,1705546255377,-500.0,0.00022191,2]
[312012261,1705546255385,-595.99223896,0.00022191,2]
[312012262,1705546255394,-500.0,0.00022191,2]
[312012263,1705546255403,-500.0,0.00022191,2]
[312012264,1705546255412,-500.0,0.00022191,2]
[312012265,1705546255421,-500.0,0.00022191,2]
[312012266,1705546255430,-500.0,0.00022191,2]
[312012267,1705546255439,-500.0,0.00022191,2]
[312012268,1705546255448,-957.49,0.00022191,2]
[312012269,1705546255457,-5134.61,0.00022191,2]
[312012270,1705546255466,-500.0,0.00022191,2]
[312012271,1705546255475,-500.0,0.00022191,2]
[312012272,1705546255484,-531.65,0.00022191,2]
[312012273,1705546255493,-1490.74,0.00022191,2]
[312012274,1705546255502,-614.5,0.00022191,2]
[312012275,1705546255510,-508.33,0.00022191,2]
[312012276,1705546255519,-500.0,0.00022191,2]
[312012277,1705546255528,-500.0,0.00022191,2]
[312012278,1705546255537,-390.69263924,0.00022191,2]
[312012279,1705546255546,-518.55,0.00022191,2]
[312012280,1705546255555,-502.42102675,0.00022191,2]
[312012281,1705546255564,-8531.77,0.00022191,2]
[312012282,1705546255573,-500.0,0.00022191,2]
[312012283,1705546255582,-500.0,0.00022191,2]
[312012284,1705546255591,-378.17347188,0.00022191,2]
[312012285,1705546255600,-500.0,0.00022191,2]
[312012286,1705546255609,-500.0,0.00022191,2]
[312012287,1705546255619,-619.99,0.00022191,2]
[312012288,1705546255628,-500.0,0.00022191,2]
[312012289,1705546255637,-500.0,0.00022191,2]
[312012290,1705546255645,-500.0,0.00022191,2]
[312012291,1705546255654,-500.0,0.00022191,2]
[312012292,1705546255663,-500.0,0.00022191,2]
[312012293,1705546255672,-572.65593391,0.00022191,2]
[312012294,1705546255681,-500.0,0.00022191,2]
[312012295,1705546255690,-500.0,0.00022191,2]
[312012296,1705546255699,-500.0,0.00022191,2]
[312012297,1705546255708,-500.0,0.00022191,2]
[312012298,1705546255717,-500.0,0.00022191,2]
[312012299,1705546255726,-500.0,0.00022191,2]
[312012300,1705546255735,-500.0,0.00022191,2]
[312012301,1705546255745,-500.0,0.00022191,2]
[312012302,1705546255754,-500.0,0.00022191,2]
[312012303,1705546255763,-1130.68,0.00022191,2]
[312012304,1705546255771,-597.67,0.00022191,2]
[312012305,1705546255781,-1325.15,0.00022191,2]
[312012306,1705546255790,-861.76,0.00022191,2]
[312012307,1705546255799,-500.0,0.00022191,2]
[312012308,1705546255809,-500.0,0.00022191,2]
[312012309,1705546255820,-707.52,0.00022191,2]
[312012310,1705546255829,-500.0,0.00022191,2]
[312012311,1705546255839,-500.0,0.00022191,2]
[312012312,1705546255848,-500.0,0.00022191,2]
[312012313,1705546255858,-959.43,0.00022191,2]
[312012314,1705546255867,-503.33223897,0.00022191,2]
[312012315,1705546255876,-500.0,0.00022191,2]
[312012316,1705546255886,-500.0,0.00022191,2]
[312012317,1705546255895,-500.0,0.00022191,2]
[312012318,1705546255904,-296.87026238,0.00022191,2]
[312012319,1705546255913,-1803.08,0.00022191,2]
[312012320,1705546255923,-500.0,0.00022191,2]
[312012321,1705546255932,-518.70933258,0.00022191,2]
[312012322,1705546255941,-500.0,0.00022191,2]
[312012323,1705546255950,-500.0,0.00022191,2]
[312012324,1705546255959,-500.0,0.00022191,2]
[312012325,1705546255968,-1538.16,0.00022191,2]
[312012326,1705546255976,-714.21,0.00022191,2]
[312012327,1705546255985,-500.0,0.00022191,2]
[312012328,1705546255994,-500.0,0.00022191,2]
[312012329,1705546256003,-500.0,0.00022191,2]
[312012330,1705546256012,-500.0,0.00022191,2]
[312012331,1705546256021,-2001.13,0.00022191,2]
[312012332,1705546256030,-500.0,0.00022191,2]
[312012333,1705546256039,-1942.19,0.00022191,2]
[312012334,1705546256048,-2238.81,0.00022191,2]
[312012335,1705546256057,-508.96653621,0.00022191,2]
[312012336,1705546256067,-500.0,0.00022191,2]
[312012337,1705546256077,-500.0,0.00022191,2]
[312012338,1705546256086,-500.0,0.00022191,2]
[312012339,1705546256095,-500.0,0.00022191,2]
[312012340,1705546256104,-700.09,0.00022191,2]
[312012341,1705546256113,-1159.09,0.00022191,2]
[312012342,1705546256125,-500.0,0.00022191,2]
[312012343,1705546256134,-2592.55,0.00022191,2]
[312012344,1705546256144,-500.0,0.00022191,2]
[312012345,1705546256155,-500.0,0.00022191,2]
[312012346,1705546256164,-500.0,0.00022191,2]
[312012347,1705546256174,-500.0,0.00022191,2]
[312012348,1705546256184,-500.0,0.00022191,2]
[312012349,1705546256193,-500.0,0.00022191,2]
[312012350,1705546256203,-703.47,0.00022191,2]
[312012351,1705546256212,-631.47,0.00022191,2]
[312012352,1705546256222,-500.0,0.00022191,2]
[312012353,1705546256231,-500.0,0.00022191,2]
[312012354,1705546256241,-500.0,0.00022191,2]
[312012355,1705546256250,-500.0,0.00022191,2]
[312012356,1705546256260,-871.29,0.00022191,2]
[312012357,1705546256271,-1896.43,0.00022191,2]
[312012358,1705546256282,-500.0,0.00022191,2]
[312012359,1705546256291,-2538.72,0.00022191,2]
[312012360,1705546256300,-500.0,0.00022191,2]
[312012361,1705546256309,-500.0,0.00022191,2]
[312012362,1705546256319,-500.0,0.00022191,2]
[312012363,1705546256328,-1064.9,0.00022191,2]
[312012364,1705546256338,-500.0,0.00022191,2]
[312012365,1705546256349,-500.0,0.00022191,2]
[312012366,1705546256358,-1277.85,0.00022191,5]
[312012367,1705546256367,-2355.5,0.00022191,2]
[312012368,1705546256379,-504.11,0.00022191,2]
[312012369,1705546256389,-3482.35,0.00022191,2]
[312012370,1705546256398,-500.0,0.00022191,2]
[312012371,1705546256408,-500.0,0.00022191,2]
[312012372,1705546256418,-500.0,0.00022191,2]
[312012373,1705546256428,-500.0,0.00022191,2]
[312012374,1705546256439,-500.0,0.00022191,2]
[312012375,1705546256449,-1073.88,0.00022191,2]
[312012376,1705546256459,-500.0,0.00022191,2]
[312012377,1705546256468,-500.0,0.00022191,2]
[312012378,1705546256477,-500.0,0.00022191,2]
[312012379,1705546256487,-500.0,0.00022191,2]
[312012380,1705546256496,-500.0,0.00022191,2]
[312012381,1705546256506,-1879.87,0.00022191,2]
[312012382,1705546256516,-500.0,0.00022191,2]
[312012383,1705546256524,-500.0,0.00022191,2]
[312012384,1705546256534,-515.21276649,0.00022191,2]
[312012385,1705546256543,-500.0,0.00022191,2]
[312012386,1705546256552,-500.0,0.00022191,2]
[312012387,1705546256561,-659.46,0.00022191,2]
[312012388,1705546256571,-500.0,0.00022191,2]
[312012389,1705546256581,-500.0,0.00022191,2]
[312012390,1705546256591,-236.8670638,0.00022191,2]
[312012391,1705546256601,-500.0,0.00022191,2]
[312012392,1705546256611,-500.0,0.00022191,2]
[312012393,1705546256621,-500.0,0.00022191,2]
[312012394,1705546256631,-500.0,0.00022191,2]
[312012395,1705546256640,-500.0,0.00022191,2]
[312012396,1705546256650,-500.0,0.00022191,2]
[312012397,1705546256659,-500.0,0.00022191,2]
[312012398,1705546256670,-500.0,0.00022191,2]
[312012399,1705546256679,-500.0,0.00022191,2]
[312012400,1705546256689,-500.0,0.00022191,2]
[312012401,1705546256700,-500.0,0.00022191,2]
[312012402,1705546256709,-4264.09,0.00022191,2]
[312012403,1705546256719,-500.0,0.00022191,2]
[312012404,1705546256729,-527.53910614,0.00022191,2]
[312012405,1705546256738,-500.0,0.00022191,2]
[312012406,1705546256747,-1353.2,0.00022191,2]
[312012407,1705546256758,-1249.26,0.00022191,2]
[312012408,1705546256768,-500.0,0.00022191,2]
[312012409,1705546256778,-1000.0,0.000222,2]
[312012410,1705546256787,-150.0,0.00022219,2]
[312012411,1705546256796,-150.0,0.00022221,2]
[312012412,1705546256806,-150.0,0.00022252,2]
[312012413,1705546256816,-170.46,0.00022279,2]
[312012414,1705546256826,-150.48,0.00022279,2]
[312012415,1705546256836,-150.0,0.0002228,2]
[312012416,1705546256845,-617.84931037,0.00022281,2]
[312012417,1705546256855,-826.098116,0.00022284,2]
[312012418,1705546256866,-3263.0,0.000223,2]
[312012419,1705546256878,-1154.0,0.00022304,2]
[312012420,1705546256887,-228.28031148,0.00022365,2]
[312012421,1705546256897,-370.92670383,0.00022365,2]
[312012422,1705546256907,-841.29342352,0.00022387,2]
[312012423,1705546256916,-500.0,0.00022399,2]
[312012424,1705546256926,-507.18536867,0.00022399,2]
[312012425,1705546256935,-500.0,0.00022399,2]
[312012426,1705546256945,-3000.0,0.000224,2]
[312012427,1705546256955,-34537.0,0.000224,2]
[312012428,1705546256965,-163.1,0.00022406,2]
[312012429,1705546256975,-3000.0,0.0002241,2]
[312012430,1705546256985,-3000.0,0.0002242,2]
[312012431,1705546256995,-3000.0,0.0002243,2]
[312012432,1705546257004,-617.84931037,0.00022436,2]
[312012433,1705546257014,-1420.7,0.00022438,2]
[312012434,1705546257023,-3000.0,0.0002244,2]
[312012435,1705546257034,-3000.0,0.0002245,2]
[312012436,1705546257046,-3000.0,0.0002246,2]
[312012437,1705546257057,-334.73562531,0.00022462,3]
[312012438,1705546257066,-150.01,0.00022463,2]
[312012439,1705546257078,-3296.21810704,0.00022463,2]
[312012440,1705546257089,-204.3370281,0.00022463,2]
[312012441,1705546257099,-856.6984896,0.00022464,2]
[312012442,1705546257110,-500.0,0.00022464,2]
[312012443,1705546257123,-500.0,0.00022464,2]
[312012444,1705546257134,-500.0,0.00022464,2]
[312012445,1705546257143,-342.8227202,0.00022464,2]
[312012446,1705546257155,-150.0,0.00022464,2]
[312012447,1705546257165,-500.0,0.00022464,2]
[312012448,1705546257175,-317.04,0.00022464,2]
[312012449,1705546257184,-300.0,0.00022464,2]
[312012450,1705546257194,-300.0,0.00022464,2]
[312012451,1705546257204,-302.84333162,0.00022464,2]
[312012452,1705546257213,-859.24,0.00022464,2]
[312012453,1705546257223,-859.24,0.00022464,2]
[312012454,1705546257233,-859.24,0.00022464,2]
[312012455,1705546257243,-859.24,0.00022464,2]
[312012456,1705546257253,-859.24,0.00022464,2]
[312012457,1705546257262,-859.24,0.00022464,2]
[312012458,1705546257272,-859.24,0.00022464,2]
[312012459,1705546257282,-859.24,0.00022464,2]
[312012460,1705546257292,-859.24,0.00022464,2]
[312012461,1705546257302,-859.24,0.00022464,2]
[312012462,1705546257312,-859.24,0.00022464,2]
[312012463,1705546257322,-859.24,0.00022464,2]
[312012464,1705546257332,-859.24,0.00022464,2]
[312012465,1705546257343,-151.0,0.00022465,7]
[312012466,1705546257353,-151.0,0.00022465,7]
[312012467,1705546257362,-198752.83124561,0.00022465,3]
[312012468,1705546258210,-513.15939286,0.00021917,2]
[312012469,1705546258219,-303.06160743,0.00021917,2]
[312012470,1705546258231,-196.93839257,0.00021917,2]
[312012471,1705546258241,-752.59,0.00021917,2]
[312012472,1705546258250,-42.2432746,0.00021917,2]
[312012473,1705546258309,-457.7567254,0.00021917,2]
[312012474,1705546258321,-181.38981636,0.00022191,2]
[312012475,1705546258335,-318.61018364,0.00022191,2]
[312012476,1705546258346,-416.8259073,0.00022191,2]
[312012477,1705546258728,-335.7640927,0.00022191,2]
[312012478,1705546258737,-623.27,0.00022191,2]
[312012479,1705546258746,-1651.54644922,0.00022465,3]
[312012480,1705546259048,-153.03474555,0.00019781,2]
[312012481,1705546259059,-500.0,0.00021917,2]
[312012482,1705546259070,-86.40514065,0.00022465,3]
[312012483,1705546259137,-399.92278718,0.00022465,3]
[312012484,1705546259150,-6842.661,0.00022465,3]
[312012485,1705546259161,-1022.65060933,0.00022465,3]
[312012486,1705546259176,-278.02097649,0.00022465,3]
[312012487,1705546259190,-3629.14709549,0.00022465,3]
[312012488,1705546259210,-2853.84301625,0.00022465,3]
[312012489,1705546259222,-1297.63979379,0.00022465,3]
[312012490,1705546259243,-543.33974753,0.00022191,2]
[312012491,1705546259254,-2.70025247,0.00022191,2]
[312012492,1705546259263,-7409.86951319,0.00022465,3]
[312012493,1705546259284,-7771.4,0.00022465,3]
[312012494,1705546259295,-9178.7606322,0.00022465,3]
[312012495,1705546259312,-972.4045936,0.00022465,3]
[312012496,1705546259892,-500.0,0.00021917,2]
[312012497,1705546259902,-1628.48,0.00021917,2]
[312012498,1705546259911,-1628.48,0.00022191,2]
[312012499,1705546259920,-2237.29450735,0.00022365,2]
[312012500,1705546259929,-9567.80896735,0.00022465,3]
[312012501,1705546259940,-2397.35460174,0.00022465,3]
[312012502,1705546259966,-265.84634938,0.00022465,3]
[312012503,1705546259979,-398707.99455432,0.00022465,3]
[312012504,1705546260019,-500.22797739,0.00022465,3]
[312012505,1705546260988,26759.94,0.0003,120]
[312012591,1705547189829,300.0,0.0003,120]
[312012594,1705547272554,609.94,0.00018151,2]
[312012616,1705547431762,-204.40930052,0.00018763,2]
[312012619,1705547431772,-370.42818622,0.00018764,2]
[312012622,1705547431782,-278.88098877,0.00018765,2]
[312012625,1705547431797,-246.34536853,0.00018765,2]
[312012627,1705547431807,-216.201822,0.00018766,2]
[312012628,1705547431817,-150.0,0.00019862,2]
[312012629,1705547431827,-150.0,0.00019876,2]
[312012630,1705547431836,-90.04494145,0.00019913,2]
[312012631,1705547431849,-59.95505855,0.00019913,2]
[312012632,1705547431860,-150.0,0.00020047,2]
[312012633,1705547431869,-135.89858069,0.00020079,2]
[312012634,1705547431899,-455.94522447,0.00020079,2]
[312012635,1705547431911,-408.15619484,0.00020079,2]
[312012636,1705547431921,-150.0,0.00020122,2]
[312012637,1705547431930,-842.85,0.00020143,2]
[312012638,1705547431940,-1964.69,0.00020164,2]
[312012639,1705547431950,-316.07254196,0.00020172,2]
[312012640,1705547431964,-150.0,0.0002018,2]
[312012641,1705547431974,-153.18,0.00020195,2]
[312012642,1705547431985,-150.0,0.00020214,2]
[312012643,1705547431995,-23900.0,0.00020215,2]
[312012644,1705547432005,-250.0,0.00020217,2]
[312012645,1705547432015,-719.18,0.00020222,2]
[312012646,1705547432026,-170.23,0.00020256,2]
[312012647,1705547432036,-150.39,0.00020322,2]
[312012648,1705547432046,-157.91,0.00020365,2]
[312012649,1705547432055,-168.95,0.00020381,2]
[312012650,1705547432066,-150.39,0.00020398,2]
[312012651,1705547432075,-609.94,0.00020415,2]
[312012652,1705547432085,-150.39,0.00020473,2]
[312012653,1705547432095,-150.0,0.00020488,2]
[312012654,1705547432105,-1921.93,0.00020548,2]
[312012655,1705547432116,-150.39,0.00020549,2]
[312012656,1705547432126,-153.18,0.00020562,2]
[312012657,1705547432136,-150.0,0.0002058,2]
[312012658,1705547432145,-150.0,0.00020599,2]
[312012659,1705547432156,-150.0,0.00020604,2]
[312012660,1705547432167,-157.91,0.00020604,2]
[312012661,1705547432177,-150.0,0.00020606,2]
[312012662,1705547432187,-150.39,0.00020625,2]
[312012663,1705547432197,-187.67188057,0.0002067,2]
[312012664,1705547432207,-150.0,0.00020693,2]
[312012665,1705547432216,-150.39,0.000207,2]
[312012666,1705547432227,-160.75355844,0.00020717,2]
[312012667,1705547432237,-150.0,0.00020752,2]
[312012668,1705547432247,-150.39,0.00020776,2]
[312012669,1705547432257,-150.0,0.00020825,2]
[312012670,1705547432267,-157.91,0.00020844,2]
[312012671,1705547432277,-150.39,0.00020851,2]
[312012672,1705547432287,-160.75355834,0.00020885,2]
[312012673,1705547432297,-150.39,0.00020927,2]
[312012674,1705547432307,-153.18,0.00020929,2]
[312012676,1705547432317,-150.39,0.00021003,2]
[312012678,1705547432326,-150.0,0.00021042,2]
[312012680,1705547432336,-160.75355834,0.00021053,2]
[312012682,1705547432345,-150.0,0.00021065,2]
[312012684,1705547432356,-150.39,0.00021078,2]
[312012686,1705547432366,-157.91,0.00021084,2]
[312012688,1705547432376,-150.0,0.00021097,2]
[312012690,1705547432386,-842.85,0.00021122,2]
[312012693,1705547432396,-150.39,0.00021154,2]
[312012695,1705547432406,-1964.69,0.00021172,2]
[312012697,1705547432416,-150.0,0.00021211,2]
[312012698,1705547432425,-160.75355834,0.0002122,2]
[312012699,1705547432435,-150.39,0.0002123,2]
[312012700,1705547432447,-7380.25441981,0.00021258,2]
[312012701,1705547432460,-336.46468748,0.00021258,2]
[312012702,1705547432472,-999.87426,0.00021258,2]
[312012703,1705547432483,-301.52504693,0.00021258,2]
[312012704,1705547432511,-10974.99028053,0.00021258,2]
[312012705,1705547432530,-2543.76363154,0.00021258,2]
[312012706,1705547432544,-410.69107254,0.00021258,2]
[312012707,1705547432556,-6824.94030825,0.00021258,2]
[312012708,1705547432566,-150.0,0.00021265,2]
[312012709,1705547432576,-4233.34,0.00021268,2]
[312012710,1705547432586,-153.18,0.00021296,2]
[312012711,1705547432596,-161.54,0.000213,2]
[312012712,1705547432605,-150.39,0.00021305,2]
[312012713,1705547432616,-157.91,0.00021323,2]
[312012714,1705547432625,-150.0,0.00021372,2]
[312012715,1705547432636,-150.39,0.00021381,2]
[312012716,1705547432645,-160.75355834,0.00021388,2]
[312012717,1705547432655,-250.0,0.0002147,2]
[312012718,1705547432665,-153.81359522,0.000215,2]
[312012719,1705547432675,-802.77,0.00021507,2]
[312012720,1705547432685,-150.0,0.00021517,2]
[312012721,1705547432695,-150.0,0.00021533,2]
[312012722,1705547432704,-150.0,0.00021541,2]
[312012723,1705547432714,-150.0,0.00021543,2]
[312012724,1705547432724,-160.75355834,0.00021556,2]
[312012725,1705547432734,-157.91,0.00021563,2]
[312012726,1705547432744,-150.0,0.0002157,2]
[312012727,1705547432755,-150.0,0.000216,2]
[312012728,1705547432764,-150.0,0.00021624,2]
[312012729,1705547432775,-150.0,0.0002165,2]
[312012730,1705547432784,-153.18,0.00021663,2]
[312012731,1705547432795,-1144.66767257,0.00021698,2]
[312012732,1705547432809,-120.33232743,0.00021698,2]
[312012733,1705547432819,-625.02593506,0.00021717,2]
[312012734,1705547432866,-935.31158802,0.00021717,2]
[312012735,1705547432877,-5472.64477692,0.00021717,2]
[312012736,1705547432978,-750.0,0.00021717,2]
[312012737,1705547432988,-882.8196,0.00021717,2]
[312012738,1705547432998,-160.75355834,0.00021724,2]
[312012739,1705547433008,-150.0,0.00021727,2]
[312012740,1705547433017,-250.0,0.00021744,2]
[312012741,1705547433027,-2014.7742301,0.0002178,2]
[312012742,1705547433038,-157.91,0.00021802,2]
[312012743,1705547433047,-11511.09783464,0.00021806,2]
[312012744,1705547433059,-300.96616691,0.00021806,2]
[312012745,1705547433070,-578.53223834,0.00021806,2]
[312012751,1705547437886,-206.0,0.00020361,2]
[312012752,1705547437896,-1634.01178555,0.00021806,2]
[312012753,1705547437907,-417.121379,0.00021806,2]
[312012754,1705547437919,-1935.14523817,0.00021806,2]
[312012755,1705547437939,-1024.88279257,0.00021806,2]
[312012756,1705547437953,-616.01249581,0.00021806,2]
[312012757,1705547437992,-148.37555168,0.00021806,2]
[312012758,1705547438002,-1000.0,0.00021817,2]
[312012759,1705547438011,-1519.84350786,0.00021817,2]
[312012760,1705547438023,-370.9210067,0.00021817,2]
[312012761,1705547438034,-698.98004566,0.00021817,2]
[312012762,1705547438046,-2410.25543978,0.00021817,2]
[312012763,1705547438055,-603.0894,0.00021817,2]
[312012764,1705547438065,-1339.58430545,0.00021817,2]
[312012765,1705547438076,-2598.80660547,0.00021817,2]
[312012766,1705547438090,-2027.33882137,0.00021817,2]
[312012767,1705547438105,-27454.07441138,0.00021817,2]
[312012768,1705547438118,-429.73880918,0.00021817,2]
[312012769,1705547438129,-281.55,0.00021817,2]
[312012770,1705547438140,-8895.65150137,0.00021817,2]
[312013053,1705547440843,-41550.40354578,0.00021817,2]
[312013055,1705547440853,-55555.0,0.00021817,2]
[312013057,1705547440862,-231.69349145,0.00021817,2]
[312013059,1705547440872,-154.4623276,0.00021817,2]
[312013061,1705547440881,-154.4623276,0.00021817,2]
[312013063,1705547440890,-201.59715363,0.00021817,2]
[312013065,1705547440900,-216.43242103,0.00021817,2]
[312013067,1705547440909,-150.0,0.00021855,2]
[312013069,1705547440919,-160.75355834,0.00021891,2]
[312013071,1705547440929,-1000.0,0.00021897,2]
[312013073,1705547440938,-246.4881501,0.00021915,2]
[312013075,1705547440948,-700.5372961,0.00021916,2]
[312013077,1705547440958,-287.06741501,0.00021916,2]
[312013080,1705547440967,-512.58795535,0.00021916,2]
[312013081,1705547440976,-768.97549332,0.00021916,2]
[312013084,1705547440986,-5368.02711498,0.00021916,2]
[312013085,1705547440995,-150.0,0.00021916,2]
[312013088,1705547441004,-150.0,0.00021916,2]
[312013089,1705547441014,-502.85496115,0.00021917,2]
[312013092,1705547441023,-509.36302032,0.00021917,2]
[312013094,1705547441032,-500.0,0.00021917,2]
[312013096,1705547441042,-500.0,0.00021917,2]
[312013098,1705547441051,-500.0,0.00021917,2]
[312013100,1705547441060,-500.0,0.00021917,2]
[312013102,1705547441070,-500.0,0.00021917,2]
[312013103,1705547441079,-506.62114573,0.00021917,2]
[312013105,1705547441088,-500.0,0.00021917,2]
[312013107,1705547441097,-500.0,0.00021917,2]
[312013109,1705547441106,-500.0,0.00021917,2]
[312013112,1705547441116,-500.0,0.00021917,2]
[312013113,1705547441126,-528.22329734,0.00021917,2]
[312013116,1705547441135,-500.0,0.00021917,2]
[312013118,1705547441145,-500.0,0.00021917,2]
[312013120,1705547441154,-500.0,0.00021917,2]
[312013121,1705547441163,-500.0,0.00021917,2]
[312013123,1705547441172,-505.11314881,0.00021917,2]
[312013125,1705547441181,-500.0,0.00021917,2]
[312013127,1705547441191,-504.06158737,0.00021917,2]
[312013130,1705547441200,-504.12169371,0.00021917,2]
[312013131,1705547441210,-500.0,0.00021917,2]
[312013133,1705547441220,-500.0,0.00021917,2]
[312013135,1705547441230,-500.0,0.00021917,2]
[312013138,1705547441239,-500.0,0.00021917,2]
[312013139,1705547441249,-508.36756402,0.00021917,2]
[312013142,1705547441258,-500.0,0.00021917,2]
[312013144,1705547441267,-500.0,0.00021917,2]
[312013146,1705547441276,-500.0,0.00021917,2]
[312013148,1705547441285,-500.0,0.00021917,2]
[312013149,1705547441294,-500.0,0.00021917,2]
[312013151,1705547441303,-500.0,0.00021917,2]
[312013153,1705547441312,-500.0,0.00021917,2]
[312013156,1705547441323,-500.0,0.00021917,2]
[312013157,1705547441334,-500.0,0.00021917,2]
[312013159,1705547441343,-144.69812117,0.00021917,2]
[312013162,1705547441358,-355.30187883,0.00021917,2]
[312013164,1705547441369,-500.0,0.00021917,2]
[312013166,1705547441378,-514.41450511,0.00021917,2]
[312013168,1705547441387,-508.87387644,0.00021917,2]
[312013170,1705547441397,-500.0,0.00021917,2]
[312013172,1705547441406,-455.07624451,0.00021917,2]
[312013180,1705547441476,-44.92375549,0.00021917,2]
[312013182,1705547441485,-500.0,0.00021917,2]
[312013184,1705547441495,-500.0,0.00021917,2]
[312013186,1705547441504,-500.0,0.00021917,2]
[312013188,1705547441513,-500.0,0.00021917,2]
[312013191,1705547441524,-500.0,0.00021917,2]
[312013193,1705547441533,-500.0,0.00021917,2]
[312013195,1705547441545,-500.0,0.00021917,2]
[312013197,1705547441555,-500.0,0.00021917,2]
[312013199,1705547441565,-500.0,0.00021917,2]
[312013201,1705547441574,-500.0,0.00021917,2]
[312013203,1705547441583,-500.0,0.00021917,2]
[312013205,1705547441592,-500.0,0.00021917,2]
[312013207,1705547441601,-500.0,0.00021917,2]
[312013209,1705547441610,-500.0,0.00021917,2]
[312013211,1705547441621,-500.0,0.00021917,2]
[312013213,1705547441630,-500.0,0.00021917,2]
[312013215,1705547441640,-537.42982604,0.00021917,2]
[312013217,1705547441649,-493.0,0.00021917,2]
[312013219,1705547441659,-500.0,0.00021917,2]
[312013221,1705547441668,-500.0,0.00021917,2]
[312013223,1705547441678,-500.0,0.00021917,2]
[312013225,1705547441687,-500.0,0.00021917,2]
[312013227,1705547441697,-500.0,0.00021917,2]
[312013229,1705547441706,-159.72618935,0.00021917,2]
[312013231,1705547441716,-500.0,0.00021917,2]
[312013233,1705547441725,-500.0,0.00021917,2]
[312013235,1705547441735,-501.80212466,0.00021917,2]
[312013237,1705547441745,-500.0,0.00021917,2]
[312013239,1705547441754,-500.0,0.00021917,2]
[312013242,1705547441763,-500.0,0.00021917,2]
[312013244,1705547441774,-500.0,0.00021917,2]
[312013246,1705547441784,-508.4750199,0.00021917,2]
[312013248,1705547441796,-500.0,0.00021917,2]
[312013250,1705547441805,-500.0,0.00021917,2]
[312013251,1705547441815,-500.0,0.00021917,2]
[312013252,1705547441824,-500.0,0.00021917,2]
[312013253,1705547441833,-243.35121785,0.00021917,2]
[312013254,1705547441843,-500.0,0.00021917,2]
[312013255,1705547441852,-500.0,0.00021917,2]
[312013256,1705547441862,-500.0,0.00021917,2]
[312013257,1705547441872,-500.0,0.00021917,2]
[312013258,1705547441883,-502.09035676,0.00021917,2]
[312013260,1705547441892,-500.0,0.00021917,2]
[312013262,1705547441902,-500.0,0.00021917,2]
[312013264,1705547441912,-500.0,0.00021917,2]
[312013267,1705547441921,-500.0,0.00021917,2]
[312013269,1705547441931,-500.0,0.00021917,2]
[312013271,1705547441940,-500.0,0.00021917,2]
[312013272,1705547441950,-500.0,0.00021917,2]
[312013274,1705547441962,-500.0,0.00021917,2]
[312013277,1705547441972,-500.0,0.00021917,2]
[312013279,1705547441982,-508.69120285,0.00021917,2]